[Event "Titled Tuesday Blitz November 07 Early 2023"]
[White "Piesik, Piotr"]
[Black "Santos Flores, Alberto"]
[WhiteFideId "1136194"]
[BlackFideId "3601234"]
[WhiteElo "2662"]
[BlackElo "2518"]
[Result "1-0"]
[Round "10"]
[TimeControl "180+1"]
[Date "2023.11.07"]
[WhiteClock "0:01:03"]
[BlackClock "0:01:10"]
[Board "62"]

1. Nf3 {[%clk 0:03:00]}  d5 {[%clk 0:02:57]} 2. g3 {[%clk 0:03:00]}  Nf6 {[%clk 0:02:57]} 3. Bg2 {[%clk 0:03:01]}  c6 {[%clk 0:02:57]} 4. O-O {[%clk 0:03:01]}  Bf5 {[%clk 0:02:57]} 5. d3 {[%clk 0:03:01]}  h6 {[%clk 0:02:56]} 6. Nbd2 {[%clk 0:03:01]}  e6 {[%clk 0:02:57]} 7. Qe1 {[%clk 0:03:01]}  Bh7 {[%clk 0:02:56]} 8. e4 {[%clk 0:03:01]}  Be7 {[%clk 0:02:56]} 9. Qe2 {[%clk 0:03:01]}  dxe4 {[%clk 0:02:52]} 10. dxe4 {[%clk 0:03:00]}  Nbd7 {[%clk 0:02:52]} 11. a4 {[%clk 0:02:59]}  a5 {[%clk 0:02:52]} 12. b3 {[%clk 0:02:59]}  Nc5 {[%clk 0:02:51]} 13. Ne1 {[%clk 0:02:56]}  Qd4 {[%clk 0:02:40]} 14. Rb1 {[%clk 0:02:56]}  Ncxe4 {[%clk 0:02:38]} 15. Nxe4 {[%clk 0:02:54]}  Bxe4 {[%clk 0:02:35]} 16. Bb2 {[%clk 0:02:50]}  Qd5 {[%clk 0:02:30]} 17. Rd1 {[%clk 0:02:50]}  Qf5 {[%clk 0:02:29]} 18. Bxe4 {[%clk 0:02:22]}  Qxe4 {[%clk 0:02:26]} 19. Qxe4 {[%clk 0:02:21]}  Nxe4 {[%clk 0:02:27]} 20. Bxg7 {[%clk 0:02:22]}  Rh7 {[%clk 0:02:25]} 21. Be5 {[%clk 0:02:20]}  Bf6 {[%clk 0:02:23]} 22. Nd3 {[%clk 0:02:15]}  Rd8 {[%clk 0:02:16]} 23. Bxf6 {[%clk 0:02:14]}  Nxf6 {[%clk 0:02:16]} 24. Ne5 {[%clk 0:02:10]}  Rd5 {[%clk 0:02:14]} 25. Nc4 {[%clk 0:02:09]}  Kd7 {[%clk 0:02:01]} 26. Nb6+ {[%clk 0:02:08]}  Kc7 {[%clk 0:02:01]} 27. Nxd5+ {[%clk 0:02:08]}  cxd5 {[%clk 0:02:01]} 28. c4 {[%clk 0:02:04]}  Rh8 {[%clk 0:01:57]} 29. cxd5 {[%clk 0:02:04]}  Nxd5 {[%clk 0:01:58]} 30. Rd4 {[%clk 0:02:01]}  Kd6 {[%clk 0:01:57]} 31. Rc1 {[%clk 0:02:00]}  Ra8 {[%clk 0:01:54]} 32. Rh4 {[%clk 0:02:00]}  Ra6 {[%clk 0:01:54]} 33. Rd1 {[%clk 0:01:55]}  Rb6 {[%clk 0:01:51]} 34. Rd3 {[%clk 0:01:55]}  Ke7 {[%clk 0:01:39]} 35. Rxh6 {[%clk 0:01:54]}  Rc6 {[%clk 0:01:38]} 36. h4 {[%clk 0:01:53]}  Nf6 {[%clk 0:01:38]} 37. Rh8 {[%clk 0:01:51]}  Rc2 {[%clk 0:01:32]} 38. Rb8 {[%clk 0:01:47]}  Rc7 {[%clk 0:01:28]} 39. Kg2 {[%clk 0:01:43]}  e5 {[%clk 0:01:28]} 40. Re3 {[%clk 0:01:41]}  Ke6 {[%clk 0:01:29]} 41. f3 {[%clk 0:01:37]}  Nd5 {[%clk 0:01:27]} 42. Re2 {[%clk 0:01:36]}  f6 {[%clk 0:01:27]} 43. h5 {[%clk 0:01:35]}  Rh7 {[%clk 0:01:26]} 44. f4 {[%clk 0:01:28]}  Rxh5 {[%clk 0:01:23]} 45. fxe5 {[%clk 0:01:29]}  fxe5 {[%clk 0:01:23]} 46. Rxb7 {[%clk 0:01:29]}  Rg5 {[%clk 0:01:22]} 47. Kf2 {[%clk 0:01:19]}  Rf5+ {[%clk 0:01:21]} 48. Ke1 {[%clk 0:01:19]}  Rg5 {[%clk 0:01:22]} 49. Kf2 {[%clk 0:01:08]}  Rf5+ {[%clk 0:01:21]} 50. Kg1 {[%clk 0:01:06]}  Rg5 {[%clk 0:01:22]} 51. Kh2 {[%clk 0:01:03]}  Rh5+ {[%clk 0:01:21]} 52. Kg2 {[%clk 0:01:04]}  Rg5 {[%clk 0:01:21]} 53. Kh3 {[%clk 0:01:04]}  Rh5+ {[%clk 0:01:16]} 54. Kg4 {[%clk 0:01:05]}  Nf6+ {[%clk 0:01:17]} 55. Kf3 {[%clk 0:01:05]}  Rf5+ {[%clk 0:01:17]} 56. Kg2 {[%clk 0:01:05]}  Rg5 {[%clk 0:01:15]} 57. Rb6+ {[%clk 0:01:04]}  Kf5 {[%clk 0:01:10]} 58. Rf2+ {[%clk 0:01:03]} 1-0


[Site "https://www.chess.com"]

[Event "Titled Tuesday Blitz November 07 Early 2023"]
[White "ChainedDowntohell"]
[Black "Degenbaev, Aziz"]
[BlackFideId "13802640"]
[WhiteElo "2515"]
[BlackElo "2659"]
[Result "1-0"]
[Round "10"]
[TimeControl "180+1"]
[Date "2023.11.07"]
[WhiteClock "0:00:02"]
[BlackClock "0:00:45"]
[Board "64"]

1. d4 {[%clk 0:03:00]}  Nf6 {[%clk 0:02:57]} 2. c4 {[%clk 0:03:00]}  g6 {[%clk 0:02:56]} 3. Nc3 {[%clk 0:02:59]}  Bg7 {[%clk 0:02:57]} 4. e4 {[%clk 0:02:59]}  d6 {[%clk 0:02:58]} 5. Be2 {[%clk 0:03:00]}  O-O {[%clk 0:02:58]} 6. Be3 {[%clk 0:03:01]}  e5 {[%clk 0:02:59]} 7. d5 {[%clk 0:03:01]}  a5 {[%clk 0:02:59]} 8. h4 {[%clk 0:03:00]}  Na6 {[%clk 0:02:59]} 9. h5 {[%clk 0:03:00]}  Nc5 {[%clk 0:03:00]} 10. Qc2 {[%clk 0:02:59]}  c6 {[%clk 0:02:59]} 11. O-O-O {[%clk 0:02:55]}  cxd5 {[%clk 0:02:59]} 12. cxd5 {[%clk 0:02:53]}  Bd7 {[%clk 0:02:59]} 13. Bxc5 {[%clk 0:02:41]}  dxc5 {[%clk 0:02:58]} 14. h6 {[%clk 0:02:40]}  Bh8 {[%clk 0:02:58]} 15. a4 {[%clk 0:02:39]}  c4 {[%clk 0:02:51]} 16. Bxc4 {[%clk 0:02:34]}  Rc8 {[%clk 0:02:51]} 17. Bb5 {[%clk 0:02:29]}  Nxe4 {[%clk 0:02:15]} 18. Qxe4 {[%clk 0:02:24]}  Bf5 {[%clk 0:02:15]} 19. Qe3 {[%clk 0:02:19]}  Bf6 {[%clk 0:02:15]} 20. Ne2 {[%clk 0:02:10]}  Bg5 {[%clk 0:02:09]} 21. f4 {[%clk 0:02:08]}  exf4 {[%clk 0:02:10]} 22. Qf3 {[%clk 0:02:03]}  Qd6 {[%clk 0:02:00]} 23. Bd3 {[%clk 0:01:40]}  Bd7 {[%clk 0:01:54]} 24. Kb1 {[%clk 0:01:34]}  Qb4 {[%clk 0:01:53]} 25. Bc2 {[%clk 0:01:31]}  Rfe8 {[%clk 0:01:51]} 26. Rd4 {[%clk 0:01:28]}  Qb6 {[%clk 0:01:50]} 27. Rxf4 {[%clk 0:00:56]}  Bxf4 {[%clk 0:01:47]} 28. Qxf4 {[%clk 0:00:53]}  Qc5 {[%clk 0:01:36]} 29. Qf6 {[%clk 0:00:45]}  Qf8 {[%clk 0:01:35]} 30. Nd4 {[%clk 0:00:31]}  Re3 {[%clk 0:01:27]} 31. Bb3 {[%clk 0:00:13]}  Rcxc3 {[%clk 0:01:13]} 32. bxc3 {[%clk 0:00:14]}  Rxc3 {[%clk 0:01:13]} 33. Kb2 {[%clk 0:00:14]}  Rd3 {[%clk 0:01:05]} 34. d6 {[%clk 0:00:13]}  b5 {[%clk 0:01:06]} 35. axb5 {[%clk 0:00:13]}  a4 {[%clk 0:01:06]} 36. Bc4 {[%clk 0:00:12]}  a3+ {[%clk 0:01:02]} 37. Ka1 {[%clk 0:00:08]}  Re3 {[%clk 0:01:00]} 38. Rf1 {[%clk 0:00:05]}  Be8 {[%clk 0:00:51]} 39. d7 {[%clk 0:00:03]}  Qb4 {[%clk 0:00:45]} 40. Qg7# {[%clk 0:00:02]} 1-0


[Site "https://www.chess.com"]

[Event "Titled Tuesday Blitz November 07 Early 2023"]
[White "Volkov, Maksim"]
[Black "Grossboss19"]
[WhiteFideId "54123070"]
[WhiteElo "2647"]
[BlackElo "2509"]
[Result "0-1"]
[Round "10"]
[TimeControl "180+1"]
[Date "2023.11.07"]
[WhiteClock "0:00:08"]
[BlackClock "0:00:14"]
[Board "67"]

1. a3 {[%clk 0:03:00]}  d5 {[%clk 0:02:53]} 2. Nf3 {[%clk 0:03:00]}  Nf6 {[%clk 0:02:52]} 3. b4 {[%clk 0:03:00]}  e6 {[%clk 0:02:52]} 4. Bb2 {[%clk 0:03:00]}  c6 {[%clk 0:02:51]} 5. e3 {[%clk 0:03:00]}  a5 {[%clk 0:02:52]} 6. b5 {[%clk 0:02:57]}  c5 {[%clk 0:02:52]} 7. c4 {[%clk 0:02:56]}  b6 {[%clk 0:02:52]} 8. d3 {[%clk 0:02:46]}  Bb7 {[%clk 0:02:46]} 9. Nbd2 {[%clk 0:02:46]}  Nbd7 {[%clk 0:02:46]} 10. Be2 {[%clk 0:02:45]}  Bd6 {[%clk 0:02:45]} 11. Qc2 {[%clk 0:02:45]}  O-O {[%clk 0:02:46]} 12. Rg1 {[%clk 0:02:43]}  Qc7 {[%clk 0:02:40]} 13. g4 {[%clk 0:02:40]}  Ne5 {[%clk 0:02:38]} 14. g5 {[%clk 0:02:37]}  Nfd7 {[%clk 0:02:36]} 15. h4 {[%clk 0:02:34]}  Nxf3+ {[%clk 0:02:34]} 16. Nxf3 {[%clk 0:02:32]}  Ne5 {[%clk 0:02:32]} 17. Nd2 {[%clk 0:02:31]}  Rad8 {[%clk 0:02:17]} 18. f4 {[%clk 0:02:29]}  Nd7 {[%clk 0:02:17]} 19. cxd5 {[%clk 0:02:07]}  exd5 {[%clk 0:02:08]} 20. O-O-O {[%clk 0:02:08]}  d4 {[%clk 0:02:07]} 21. Nc4 {[%clk 0:02:07]}  Rfe8 {[%clk 0:01:53]} 22. f5 {[%clk 0:02:00]}  Bh2 {[%clk 0:01:39]} 23. e4 {[%clk 0:01:47]}  Bxg1 {[%clk 0:01:32]} 24. Rxg1 {[%clk 0:01:48]}  Ne5 {[%clk 0:01:26]} 25. Nxe5 {[%clk 0:01:27]}  Qxe5 {[%clk 0:01:25]} 26. Kb1 {[%clk 0:01:24]}  Rc8 {[%clk 0:01:17]} 27. g6 {[%clk 0:01:13]}  fxg6 {[%clk 0:01:10]} 28. fxg6 {[%clk 0:01:13]}  c4 {[%clk 0:01:08]} 29. Bg4 {[%clk 0:01:10]}  Rc7 {[%clk 0:00:57]} 30. Ka1 {[%clk 0:01:03]}  cxd3 {[%clk 0:00:55]} 31. Qb3+ {[%clk 0:01:03]}  Kh8 {[%clk 0:00:51]} 32. gxh7 {[%clk 0:00:55]}  Bxe4 {[%clk 0:00:46]} 33. h5 {[%clk 0:00:54]}  Qd5 {[%clk 0:00:37]} 34. Qxd5 {[%clk 0:00:40]}  Bxd5 {[%clk 0:00:38]} 35. Bxd4 {[%clk 0:00:40]}  d2 {[%clk 0:00:37]} 36. Kb2 {[%clk 0:00:35]}  Re1 {[%clk 0:00:34]} 37. h6 {[%clk 0:00:23]}  Rxg1 {[%clk 0:00:26]} 38. Bxg1 {[%clk 0:00:24]}  Kxh7 {[%clk 0:00:23]} 39. Be3 {[%clk 0:00:19]}  Rc4 {[%clk 0:00:20]} 40. Bh5 {[%clk 0:00:13]}  Rh4 {[%clk 0:00:17]} 41. Bd1 {[%clk 0:00:10]}  Rh1 {[%clk 0:00:15]} 42. Bc2+ {[%clk 0:00:11]}  g6 {[%clk 0:00:12]} 43. Bxd2 {[%clk 0:00:11]}  Rh2 {[%clk 0:00:12]} 44. Kc3 {[%clk 0:00:11]}  Rh3+ {[%clk 0:00:13]} 45. Kd4 {[%clk 0:00:11]}  Be6 {[%clk 0:00:12]} 46. a4 {[%clk 0:00:10]}  Bf5 {[%clk 0:00:11]} 47. Bxf5 {[%clk 0:00:09]}  gxf5 {[%clk 0:00:12]} 48. Ke5 {[%clk 0:00:10]}  Kg6 {[%clk 0:00:12]} 49. Kd6 {[%clk 0:00:06]}  Rd3+ {[%clk 0:00:12]} 50. Kc6 {[%clk 0:00:06]}  Rxd2 {[%clk 0:00:12]} 51. Kxb6 {[%clk 0:00:07]}  f4 {[%clk 0:00:13]} 52. Kc7 {[%clk 0:00:08]}  f3 {[%clk 0:00:13]} 53. b6 {[%clk 0:00:08]}  f2 {[%clk 0:00:14]} 54. b7 {[%clk 0:00:08]}  Rc2+ {[%clk 0:00:14]} 0-1


[Site "https://www.chess.com"]

[Event "Titled Tuesday Blitz November 07 Early 2023"]
[White "Kanyamarala, Trisha"]
[Black "Yelisieiev, Yevhenii"]
[WhiteFideId "45004722"]
[BlackFideId "14139642"]
[WhiteElo "2511"]
[BlackElo "2645"]
[Result "0-1"]
[Round "10"]
[TimeControl "180+1"]
[Date "2023.11.07"]
[WhiteClock "0:00:08"]
[BlackClock "0:00:11"]
[Board "68"]

1. c4 {[%clk 0:02:54]}  e6 {[%clk 0:02:54]} 2. Nc3 {[%clk 0:02:54]}  d5 {[%clk 0:02:54]} 3. e3 {[%clk 0:02:54]}  c5 {[%clk 0:02:53]} 4. cxd5 {[%clk 0:02:54]}  exd5 {[%clk 0:02:53]} 5. d4 {[%clk 0:02:54]}  Nf6 {[%clk 0:02:53]} 6. Nf3 {[%clk 0:02:52]}  Nc6 {[%clk 0:02:53]} 7. Bd3 {[%clk 0:02:50]}  cxd4 {[%clk 0:02:52]} 8. exd4 {[%clk 0:02:50]}  h6 {[%clk 0:02:47]} 9. h3 {[%clk 0:02:49]}  Bd6 {[%clk 0:02:45]} 10. O-O {[%clk 0:02:49]}  O-O {[%clk 0:02:46]} 11. a3 {[%clk 0:02:48]}  Be6 {[%clk 0:02:42]} 12. b4 {[%clk 0:02:47]}  a5 {[%clk 0:02:37]} 13. b5 {[%clk 0:02:45]}  Nb8 {[%clk 0:02:35]} 14. b6 {[%clk 0:02:16]}  Nbd7 {[%clk 0:02:22]} 15. Nb5 {[%clk 0:02:12]}  Nxb6 {[%clk 0:02:11]} 16. a4 {[%clk 0:02:09]}  Bb4 {[%clk 0:02:03]} 17. Bf4 {[%clk 0:02:08]}  Rc8 {[%clk 0:02:02]} 18. Rc1 {[%clk 0:02:05]}  Qd7 {[%clk 0:01:59]} 19. Ne5 {[%clk 0:02:00]}  Qe7 {[%clk 0:01:57]} 20. Qf3 {[%clk 0:01:56]}  Nxa4 {[%clk 0:01:43]} 21. Bb1 {[%clk 0:01:46]}  Ne4 {[%clk 0:01:32]} 22. Bxe4 {[%clk 0:01:42]}  dxe4 {[%clk 0:01:32]} 23. Qxe4 {[%clk 0:01:42]}  Nc3 {[%clk 0:01:09]} 24. Nxc3 {[%clk 0:01:36]}  Rxc3 {[%clk 0:01:08]} 25. d5 {[%clk 0:01:33]}  Bd7 {[%clk 0:00:57]} 26. Qd4 {[%clk 0:01:24]}  Rfc8 {[%clk 0:00:45]} 27. Rcd1 {[%clk 0:01:09]}  Bb5 {[%clk 0:00:40]} 28. d6 {[%clk 0:01:04]}  Bxd6 {[%clk 0:00:20]} 29. Qxd6 {[%clk 0:01:03]}  Qxd6 {[%clk 0:00:21]} 30. Rxd6 {[%clk 0:01:02]}  Bxf1 {[%clk 0:00:22]} 31. Kxf1 {[%clk 0:01:02]}  a4 {[%clk 0:00:22]} 32. Bd2 {[%clk 0:00:54]}  Rb3 {[%clk 0:00:19]} 33. Rd4 {[%clk 0:00:40]}  b5 {[%clk 0:00:18]} 34. Nd3 {[%clk 0:00:32]}  a3 {[%clk 0:00:16]} 35. Nb4 {[%clk 0:00:30]}  Rb2 {[%clk 0:00:12]} 36. Ke1 {[%clk 0:00:17]}  a2 {[%clk 0:00:12]} 37. Nxa2 {[%clk 0:00:16]}  Rxa2 {[%clk 0:00:12]} 38. Rb4 {[%clk 0:00:13]}  Rcc2 {[%clk 0:00:12]} 39. Be3 {[%clk 0:00:08]}  Ra1+ {[%clk 0:00:11]} 0-1


[Site "https://www.chess.com"]

[Event "Titled Tuesday Blitz November 07 Early 2023"]
[White "Hajiyev, Kanan"]
[Black "Adewumi, Tanitoluwa"]
[WhiteFideId "13404148"]
[BlackFideId "30966396"]
[WhiteElo "2508"]
[BlackElo "2641"]
[Result "0-1"]
[Round "10"]
[TimeControl "180+1"]
[Date "2023.11.07"]
[WhiteClock "0:01:17"]
[BlackClock "0:00:04"]
[Board "69"]

1. d4 {[%clk 0:03:00]}  Nf6 {[%clk 0:02:42]} 2. c4 {[%clk 0:03:00]}  e6 {[%clk 0:02:42]} 3. Nf3 {[%clk 0:03:01]}  b6 {[%clk 0:02:41]} 4. Nc3 {[%clk 0:03:01]}  Bb7 {[%clk 0:02:41]} 5. g3 {[%clk 0:03:01]}  d5 {[%clk 0:02:36]} 6. cxd5 {[%clk 0:03:01]}  exd5 {[%clk 0:02:35]} 7. Bg2 {[%clk 0:03:02]}  Bd6 {[%clk 0:02:35]} 8. O-O {[%clk 0:03:03]}  O-O {[%clk 0:02:36]} 9. Bg5 {[%clk 0:03:01]}  Nbd7 {[%clk 0:02:36]} 10. Bf4 {[%clk 0:03:02]}  Bxf4 {[%clk 0:02:30]} 11. gxf4 {[%clk 0:03:03]}  Ne4 {[%clk 0:02:29]} 12. Rc1 {[%clk 0:03:02]}  a6 {[%clk 0:02:28]} 13. e3 {[%clk 0:03:01]}  Rc8 {[%clk 0:02:23]} 14. Nxe4 {[%clk 0:02:58]}  dxe4 {[%clk 0:02:24]} 15. Ne5 {[%clk 0:02:59]}  Nf6 {[%clk 0:02:07]} 16. Qb3 {[%clk 0:02:48]}  Qd6 {[%clk 0:01:56]} 17. Rfd1 {[%clk 0:02:46]}  a5 {[%clk 0:01:48]} 18. a3 {[%clk 0:02:46]}  Bd5 {[%clk 0:01:47]} 19. Qc2 {[%clk 0:02:47]}  c5 {[%clk 0:01:40]} 20. dxc5 {[%clk 0:02:46]}  Rxc5 {[%clk 0:01:40]} 21. Qd2 {[%clk 0:02:47]}  Rfc8 {[%clk 0:01:32]} 22. Rxc5 {[%clk 0:02:33]}  Qxc5 {[%clk 0:01:33]} 23. Bh3 {[%clk 0:02:32]}  Rc7 {[%clk 0:01:18]} 24. Kg2 {[%clk 0:02:25]}  h6 {[%clk 0:01:06]} 25. Nd7 {[%clk 0:02:12]}  Nxd7 {[%clk 0:00:39]} 26. Qxd5 {[%clk 0:02:11]}  Nf6 {[%clk 0:00:20]} 27. Qxc5 {[%clk 0:02:02]}  Rxc5 {[%clk 0:00:20]} 28. Rd4 {[%clk 0:01:56]}  Rc2 {[%clk 0:00:16]} 29. b4 {[%clk 0:01:56]}  axb4 {[%clk 0:00:10]} 30. axb4 {[%clk 0:01:52]}  g6 {[%clk 0:00:08]} 31. Rd6 {[%clk 0:01:51]}  Kg7 {[%clk 0:00:08]} 32. Rxb6 {[%clk 0:01:52]}  Nd5 {[%clk 0:00:09]} 33. Rb7 {[%clk 0:01:49]}  Nxe3+ {[%clk 0:00:09]} 34. Kg3 {[%clk 0:01:48]}  Nd5 {[%clk 0:00:08]} 35. Be6 {[%clk 0:01:47]}  Rc3+ {[%clk 0:00:08]} 36. Kh4 {[%clk 0:01:42]}  Nxf4 {[%clk 0:00:02]} 37. Rxf7+ {[%clk 0:01:41]}  Kh8 {[%clk 0:00:02]} 38. Rf8+ {[%clk 0:01:30]}  Kg7 {[%clk 0:00:02]} 39. Rf7+ {[%clk 0:01:30]}  Kh8 {[%clk 0:00:03]} 40. Kg4 {[%clk 0:01:31]}  Nxe6 {[%clk 0:00:03]} 41. Rf6 {[%clk 0:01:31]}  Ng7 {[%clk 0:00:02]} 42. Rxg6 {[%clk 0:01:31]}  Kh7 {[%clk 0:00:02]} 43. Rb6 {[%clk 0:01:30]}  Rc4 {[%clk 0:00:02]} 44. Kf4 {[%clk 0:01:30]}  Kg8 {[%clk 0:00:02]} 45. Ke5 {[%clk 0:01:30]}  Rc2 {[%clk 0:00:02]} 46. Rb8+ {[%clk 0:01:29]}  Kf7 {[%clk 0:00:02]} 47. Rb7+ {[%clk 0:01:29]}  Kg6 {[%clk 0:00:03]} 48. Kxe4 {[%clk 0:01:26]}  Rxf2 {[%clk 0:00:03]} 49. h4 {[%clk 0:01:26]}  Rh2 {[%clk 0:00:03]} 50. Rb6+ {[%clk 0:01:27]}  Kf7 {[%clk 0:00:03]} 51. Rb7+ {[%clk 0:01:28]}  Kf6 {[%clk 0:00:04]} 52. b5 {[%clk 0:01:29]}  Rxh4+ {[%clk 0:00:03]} 53. Kd5 {[%clk 0:01:29]}  Rb4 {[%clk 0:00:03]} 54. Rb6+ {[%clk 0:01:29]}  Kf5 {[%clk 0:00:02]} 55. Kc5 {[%clk 0:01:30]}  Rb1 {[%clk 0:00:02]} 56. Rb8 {[%clk 0:01:29]}  Ne6+ {[%clk 0:00:02]} 57. Kc4 {[%clk 0:01:28]}  Ke5 {[%clk 0:00:03]} 58. b6 {[%clk 0:01:27]}  h5 {[%clk 0:00:03]} 59. Rh8 {[%clk 0:01:26]}  Rxb6 {[%clk 0:00:02]} 60. Rxh5+ {[%clk 0:01:26]}  Kd6 {[%clk 0:00:03]} 61. Rh6 {[%clk 0:01:26]}  Rb8 {[%clk 0:00:03]} 62. Rg6 {[%clk 0:01:25]}  Rf8 {[%clk 0:00:03]} 63. Rh6 {[%clk 0:01:25]}  Rf4+ {[%clk 0:00:03]} 64. Kd3 {[%clk 0:01:26]}  Kd5 {[%clk 0:00:03]} 65. Rh5+ {[%clk 0:01:26]}  Kd6 {[%clk 0:00:03]} 66. Rh6 {[%clk 0:01:26]}  Ra4 {[%clk 0:00:04]} 67. Rh5 {[%clk 0:01:24]}  Nf4+ {[%clk 0:00:03]} 68. Kc3 {[%clk 0:01:17]}  Nxh5 {[%clk 0:00:04]} 0-1


[Site "https://www.chess.com"]

[Event "Titled Tuesday Blitz November 07 Early 2023"]
[White "Czerw, Dawid"]
[Black "Lewicki, Miroslaw"]
[WhiteFideId "1145746"]
[BlackFideId "1113380"]
[WhiteElo "2473"]
[BlackElo "2598"]
[Result "1-0"]
[Round "10"]
[TimeControl "180+1"]
[Date "2023.11.07"]
[WhiteClock "0:00:53"]
[BlackClock "0:00:33"]
[Board "73"]

1. e4 {[%clk 0:03:00]}  e6 {[%clk 0:02:48]} 2. d4 {[%clk 0:02:59]}  Ke7 {[%clk 0:02:49]} 3. c4 {[%clk 0:02:57]}  d6 {[%clk 0:02:49]} 4. Nc3 {[%clk 0:02:58]}  Nd7 {[%clk 0:02:45]} 5. f4 {[%clk 0:02:58]}  b6 {[%clk 0:02:40]} 6. Nf3 {[%clk 0:02:58]}  Bb7 {[%clk 0:02:41]} 7. Bd3 {[%clk 0:02:58]}  Ke8 {[%clk 0:02:38]} 8. O-O {[%clk 0:02:58]}  g6 {[%clk 0:02:37]} 9. f5 {[%clk 0:02:58]}  e5 {[%clk 0:02:29]} 10. fxg6 {[%clk 0:02:50]}  hxg6 {[%clk 0:02:28]} 11. Bg5 {[%clk 0:02:38]}  Be7 {[%clk 0:02:27]} 12. Bxe7 {[%clk 0:02:34]}  Qxe7 {[%clk 0:02:26]} 13. Nd5 {[%clk 0:02:34]}  Bxd5 {[%clk 0:02:25]} 14. cxd5 {[%clk 0:02:25]}  Kf8 {[%clk 0:02:13]} 15. Rc1 {[%clk 0:02:23]}  Qd8 {[%clk 0:01:46]} 16. Qc2 {[%clk 0:02:19]}  exd4 {[%clk 0:01:44]} 17. Qxc7 {[%clk 0:02:10]}  Nc5 {[%clk 0:01:43]} 18. Qxd8+ {[%clk 0:02:05]}  Rxd8 {[%clk 0:01:44]} 19. Rcd1 {[%clk 0:02:02]}  Re8 {[%clk 0:01:40]} 20. Ng5 {[%clk 0:01:51]}  Re7 {[%clk 0:01:33]} 21. b4 {[%clk 0:01:47]}  Na4 {[%clk 0:01:33]} 22. Ne6+ {[%clk 0:01:35]}  Rxe6 {[%clk 0:01:26]} 23. dxe6 {[%clk 0:01:35]}  f6 {[%clk 0:01:27]} 24. Bc4 {[%clk 0:01:23]}  Nc3 {[%clk 0:01:27]} 25. Rxd4 {[%clk 0:01:21]}  Ke7 {[%clk 0:01:27]} 26. e5 {[%clk 0:01:12]}  fxe5 {[%clk 0:01:20]} 27. Rf7+ {[%clk 0:01:08]}  Ke8 {[%clk 0:01:21]} 28. Rxd6 {[%clk 0:01:06]}  Ne7 {[%clk 0:01:21]} 29. Rd7 {[%clk 0:00:59]}  Nc8 {[%clk 0:00:33]} 30. Ba6 {[%clk 0:00:53]} 1-0


[Site "https://www.chess.com"]

[Event "Titled Tuesday Blitz November 07 Early 2023"]
[White "Tsotsonava, Elene"]
[Black "Derjabin, Ilja"]
[WhiteFideId "13615939"]
[BlackFideId "14104768"]
[WhiteElo "2433"]
[BlackElo "2567"]
[Result "1/2-1/2"]
[Round "10"]
[TimeControl "180+1"]
[Date "2023.11.07"]
[WhiteClock "0:00:07"]
[BlackClock "0:00:04"]
[Board "75"]

1. d4 {[%clk 0:02:59]}  Nf6 {[%clk 0:02:55]} 2. Nc3 {[%clk 0:02:54]}  e6 {[%clk 0:02:55]} 3. Bf4 {[%clk 0:02:51]}  Bb4 {[%clk 0:02:53]} 4. Qd3 {[%clk 0:02:49]}  O-O {[%clk 0:02:44]} 5. a3 {[%clk 0:02:44]}  Bxc3+ {[%clk 0:02:42]} 6. Qxc3 {[%clk 0:02:44]}  Nd5 {[%clk 0:02:42]} 7. Qg3 {[%clk 0:02:45]}  Nxf4 {[%clk 0:02:42]} 8. Qxf4 {[%clk 0:02:46]}  b6 {[%clk 0:02:28]} 9. e3 {[%clk 0:02:46]}  Bb7 {[%clk 0:02:28]} 10. Nf3 {[%clk 0:02:46]}  d6 {[%clk 0:02:24]} 11. Bd3 {[%clk 0:02:38]}  Nd7 {[%clk 0:02:23]} 12. Qg3 {[%clk 0:02:35]}  Qf6 {[%clk 0:02:19]} 13. Ng5 {[%clk 0:02:23]}  g6 {[%clk 0:02:11]} 14. h4 {[%clk 0:02:14]}  h6 {[%clk 0:01:55]} 15. Ne4 {[%clk 0:02:04]}  Qg7 {[%clk 0:01:54]} 16. Nd2 {[%clk 0:01:53]}  f5 {[%clk 0:01:49]} 17. O-O-O {[%clk 0:01:51]}  e5 {[%clk 0:01:43]} 18. dxe5 {[%clk 0:01:44]}  Nxe5 {[%clk 0:01:37]} 19. Nf3 {[%clk 0:01:40]}  Ng4 {[%clk 0:01:29]} 20. Nd4 {[%clk 0:01:37]}  Rae8 {[%clk 0:01:27]} 21. Bc4+ {[%clk 0:01:30]}  d5 {[%clk 0:01:26]} 22. Be2 {[%clk 0:01:30]}  Ne5 {[%clk 0:01:20]} 23. Kb1 {[%clk 0:01:28]}  c5 {[%clk 0:01:17]} 24. Nf3 {[%clk 0:01:27]}  Ng4 {[%clk 0:01:14]} 25. Nd2 {[%clk 0:00:56]}  d4 {[%clk 0:01:14]} 26. Bxg4 {[%clk 0:00:54]}  fxg4 {[%clk 0:01:14]} 27. Nc4 {[%clk 0:00:48]}  dxe3 {[%clk 0:01:00]} 28. Nxe3 {[%clk 0:00:43]}  h5 {[%clk 0:01:00]} 29. Rd2 {[%clk 0:00:42]}  Re7 {[%clk 0:00:55]} 30. Rhd1 {[%clk 0:00:41]}  Be4 {[%clk 0:00:54]} 31. Qd6 {[%clk 0:00:22]}  Ref7 {[%clk 0:00:46]} 32. Qe6 {[%clk 0:00:20]}  Bb7 {[%clk 0:00:32]} 33. Rd7 {[%clk 0:00:20]}  Bc8 {[%clk 0:00:32]} 34. Rxf7 {[%clk 0:00:12]}  Bxe6 {[%clk 0:00:32]} 35. Rxg7+ {[%clk 0:00:13]}  Kxg7 {[%clk 0:00:33]} 36. Rd2 {[%clk 0:00:13]}  b5 {[%clk 0:00:33]} 37. g3 {[%clk 0:00:13]}  Kf6 {[%clk 0:00:32]} 38. b4 {[%clk 0:00:14]}  cxb4 {[%clk 0:00:31]} 39. axb4 {[%clk 0:00:14]}  Ke5 {[%clk 0:00:31]} 40. Kb2 {[%clk 0:00:15]}  Ke4 {[%clk 0:00:27]} 41. c3 {[%clk 0:00:14]}  Bc4 {[%clk 0:00:25]} 42. Nc2 {[%clk 0:00:09]}  Bd3 {[%clk 0:00:16]} 43. Nd4 {[%clk 0:00:09]}  Bc4 {[%clk 0:00:14]} 44. Kc2 {[%clk 0:00:07]}  a6 {[%clk 0:00:13]} 45. Kd1 {[%clk 0:00:07]}  Rc8 {[%clk 0:00:12]} 46. Kc2 {[%clk 0:00:07]}  Bf1 {[%clk 0:00:11]} 47. Kb2 {[%clk 0:00:07]}  Bc4 {[%clk 0:00:10]} 48. Nc2 {[%clk 0:00:07]}  Kf3 {[%clk 0:00:08]} 49. Ne1+ {[%clk 0:00:07]}  Ke4 {[%clk 0:00:08]} 50. Nc2 {[%clk 0:00:08]}  Rf8 {[%clk 0:00:08]} 51. Nd4 {[%clk 0:00:07]}  Bf1 {[%clk 0:00:07]} 52. Kc2 {[%clk 0:00:07]}  Ra8 {[%clk 0:00:06]} 53. Kb2 {[%clk 0:00:07]}  Rc8 {[%clk 0:00:05]} 54. Nb3 {[%clk 0:00:07]}  Rc6 {[%clk 0:00:02]} 55. Nd4 {[%clk 0:00:06]}  Rc8 {[%clk 0:00:02]} 56. Nb3 {[%clk 0:00:06]}  Bc4 {[%clk 0:00:03]} 57. Nd4 {[%clk 0:00:06]}  Rf8 {[%clk 0:00:02]} 58. Kc1 {[%clk 0:00:06]}  Rf7 {[%clk 0:00:02]} 59. Kd1 {[%clk 0:00:06]}  Rf6 {[%clk 0:00:03]} 60. Kc1 {[%clk 0:00:06]}  Bd3 {[%clk 0:00:03]} 61. Kb2 {[%clk 0:00:06]}  Bc4 {[%clk 0:00:03]} 62. Nc2 {[%clk 0:00:06]}  Kf3 {[%clk 0:00:03]} 63. Ne1+ {[%clk 0:00:06]}  Ke4 {[%clk 0:00:04]} 64. Nc2 {[%clk 0:00:07]}  Kf3 {[%clk 0:00:04]} 65. Ne1+ {[%clk 0:00:07]}  Ke4 {[%clk 0:00:04]} 66. Nc2 {[%clk 0:00:07]} 1/2-1/2


[Site "https://www.chess.com"]